lending/lending_fUSD_20250706
["ID","MTS","AMOUNT","RATE_DAILY","PERIOD"]
[369990716,1751813460323,-460.0,0.00019726,2]
[369990717,1751813460338,-460.0,0.00019726,2]
[369990718,1751813460348,-460.0,0.00019726,2]
[369990719,1751813460358,-493.85271848,0.00019726,2]
[369990720,1751813460367,-310.88591154,0.00019726,2]
[369990721,1751813460376,-460.0,0.00019726,2]
[369990722,1751813460385,-460.0,0.00019726,2]
[369990723,1751813460395,-460.0,0.00019726,2]
[369990724,1751813460405,-460.0,0.00019726,2]
[369990725,1751813460414,-420.1181793,0.00019726,2]
[369990726,1751813460423,-249.36629655,0.00019726,2]
[369990727,1751813460434,-460.0,0.00019726,2]
[369990728,1751813460443,-460.0,0.00019726,2]
[369990729,1751813460453,-460.0,0.00019726,2]
[369990730,1751813460462,-263.89814246,0.00019726,2]
[369990731,1751813460471,-460.0,0.00019726,2]
[369990732,1751813460481,-460.0,0.00019726,2]
[369990733,1751813460490,-477.85787639,0.00019726,2]
[369990734,1751813460499,-460.0,0.00019726,2]
[369990735,1751813460509,-460.0,0.00019726,2]
[369990736,1751813460519,-807.36,0.00019726,2]
[369990737,1751813460528,-460.0,0.00019726,2]
[369990738,1751813460538,-460.0,0.00019726,2]
[369990739,1751813460547,-460.0,0.00019726,2]
[369990740,1751813460557,-309.25037006,0.00019726,2]
[369990741,1751813460569,-460.0,0.00019726,2]
[369990742,1751813460579,-460.0,0.00019726,2]
[369990743,1751813460590,-394.36,0.00019726,2]
[369990744,1751813460600,-460.0,0.00019726,2]
[369990745,1751813460610,-460.0,0.00019726,2]
[369990746,1751813460620,-460.0,0.00019726,2]
[369990747,1751813460631,-460.0,0.00019726,2]
[369990748,1751813460641,-460.0,0.00019726,2]
[369990749,1751813460650,-460.0,0.00019726,2]
[369990750,1751813460660,-692.48,0.00019726,2]
[369990751,1751813460669,-460.0,0.00019726,2]
[369990752,1751813460679,-584.79,0.00019726,2]
[369990753,1751813460689,-460.0,0.00019726,2]
[369990754,1751813460699,-460.0,0.00019726,2]
[369990755,1751813460708,-460.0,0.00019726,2]
[369990756,1751813460720,-460.0,0.00019726,2]
[369990757,1751813460730,-686.8,0.00019726,2]
[369990758,1751813460740,-645.74,0.00019726,2]
[369990759,1751813460749,-460.0,0.00019726,2]
[369990760,1751813460758,-691.68,0.00019726,2]
[369990761,1751813460767,-460.0,0.00019726,2]
[369990762,1751813460777,-460.0,0.00019726,2]
[369990763,1751813460786,-577.46,0.00019726,2]
[369990764,1751813460795,-495.85777758,0.00019726,2]
[369990765,1751813460804,-460.0,0.00019726,2]
[369990766,1751813460814,-728.31,0.00019726,2]
[369990767,1751813460823,-460.0,0.00019726,2]
[369990768,1751813460832,-460.0,0.00019726,2]
[369990769,1751813460842,-626.13,0.00019726,2]
[369990770,1751813460851,-460.0,0.00019726,2]
[369990771,1751813460860,-474.84603084,0.00019726,2]
[369990772,1751813460869,-532.17431357,0.00019726,2]
[369990773,1751813460878,-460.0,0.00019726,2]
[369990774,1751813460887,-465.96333509,0.00019726,2]
[369990775,1751813460896,-460.0,0.00019726,2]
[369990776,1751813460906,-470.77897502,0.00019726,2]
[369990777,1751813460915,-460.0,0.00019726,2]
[369990778,1751813460925,-460.0,0.00019726,2]
[369990779,1751813460934,-597.3,0.00019726,2]
[369990780,1751813460943,-772.31,0.00019726,2]
[369990781,1751813460952,-460.0,0.00019726,2]
[369990782,1751813460962,-460.0,0.00019726,2]
[369990783,1751813460971,-599.01,0.00019726,2]
[369990784,1751813460983,-460.0,0.00019726,2]
[369990785,1751813460993,-467.20532798,0.00019726,2]
[369990786,1751813461002,-593.31,0.00019726,2]
[369990787,1751813461015,-378.14055161,0.00019726,2]
[369990791,1751813603840,156.69,0.00013699,2]
[369990798,1751814010656,150.0,0.00015,20]
[369990799,1751814029010,505.0,0.0001385,2]
[369990801,1751814150059,600.8052,0.00030136,120]
[369990804,1751814630180,156.84,0.00013699,2]
[369990809,1751814631494,-250.0,0.00016943,2]
[369990810,1751814631506,-250.0,0.00017435,2]
[369990811,1751814631517,-300.0,0.00017435,2]
[369990812,1751814631529,-150.0,0.00017753,2]
[369990813,1751814631540,-163.0,0.00017753,2]
[369990814,1751814631550,-505.0,0.00017978,2]
[369990815,1751814631561,-150.0,0.000181,2]
[369990816,1751814631572,-666.0,0.00018182,2]
[369990817,1751814631584,-426.0,0.00018205,2]
[369990818,1751814631595,-1000.0,0.00018209,2]
[369990819,1751814631606,-535.94,0.00018209,2]
[369990820,1751814631616,-167.33,0.00018329,2]
[369990821,1751814631627,-159.66,0.00018329,2]
[369990822,1751814631638,-817.53,0.00018331,2]
[369990823,1751814631649,-501.06,0.00018338,2]
[369990824,1751814631660,-200.0,0.00018356,7]
[369990825,1751814631672,-267.09,0.0001838,3]
[369990826,1751814631682,-207.4,0.00018389,2]
[369990827,1751814631693,-150.0,0.0001859,2]
[369990828,1751814631704,-300.0,0.00018899,2]
[369990829,1751814631715,-900.0,0.000189,6]
[369990830,1751814631725,-1524.70733439,0.000189,2]
[369990831,1751814631735,-210.28410923,0.00019067,2]
[369990832,1751814631746,-150.0,0.0001907,2]
[369990833,1751814631757,-641.90348301,0.00019078,2]
[369990834,1751814631767,-372.07651376,0.00019078,2]
[369990836,1751814631778,-1778.37172956,0.00019078,2]
[369990837,1751814631791,-289.555,0.00019078,2]
[369990838,1751814631838,-542.468985,0.00019078,2]
[369990839,1751814631854,-706.43008488,0.00019078,2]
[369990840,1751814631889,-344.85904928,0.00019078,2]
[369990841,1751814631929,-520.31,0.00019078,2]
[369990842,1751814631943,-282.49622955,0.00019078,2]
[369990843,1751814631957,-535.50892173,0.00019078,2]
[369990844,1751814631969,-565.79127827,0.00019078,2]
[369990845,1751814631982,-375.94874776,0.00019078,2]
[369990848,1751814637632,-419.94658659,0.00019078,2]
[369990849,1751814637644,-1084.11234128,0.00019078,2]
[369990850,1751814637679,-4088.72458375,0.00019078,2]
[369990851,1751814637811,-3238.8,0.00019078,2]
[369991538,1751814645428,-214.0086601,0.00019078,2]
[369991540,1751814645438,-8141.46696235,0.00019078,2]
[369991541,1751814645449,-372.07651357,0.00019121,2]
[369991543,1751814645459,-836.76783547,0.00019132,2]
[369991545,1751814645468,-160.0,0.00019132,2]
[369991547,1751814645478,-210.28571445,0.00019132,2]
[369991549,1751814645487,-372.07651357,0.00019165,2]
[369991551,1751814645497,-326.44410476,0.00019167,2]
[369991553,1751814645506,-500.0,0.00019177,2]
[369991554,1751814645516,-500.0,0.00019177,2]
[369991556,1751814645525,-500.0,0.00019177,2]
[369991558,1751814645534,-500.0,0.00019177,2]
[369991560,1751814645544,-500.0,0.00019177,2]
[369991562,1751814645554,-500.0,0.00019177,2]
[369991564,1751814645563,-500.0,0.00019177,2]
[369991565,1751814645572,-500.0,0.00019177,2]
[369991567,1751814645582,-500.0,0.00019177,2]
[369991569,1751814645591,-500.0,0.00019177,2]
[369991571,1751814645600,-500.0,0.00019177,2]
[369991573,1751814645612,-500.0,0.00019177,2]
[369991575,1751814645621,-500.0,0.00019177,2]
[369991576,1751814645631,-500.0,0.00019177,2]
[369991578,1751814645640,-500.0,0.00019177,2]
[369991580,1751814645649,-500.0,0.00019177,2]
[369991582,1751814645659,-500.0,0.00019177,2]
[369991584,1751814645668,-500.0,0.00019177,2]
[369991585,1751814645678,-500.0,0.00019177,2]
[369991587,1751814645687,-500.0,0.00019177,2]
[369991589,1751814645696,-241.8514,0.00019177,2]
[369991591,1751814645705,-500.0,0.00019177,2]
[369991593,1751814645714,-500.0,0.00019177,2]
[369991594,1751814645723,-333.11442868,0.00019177,2]
[369991596,1751814645733,-500.0,0.00019177,2]
[369991598,1751814645742,-500.0,0.00019177,2]
[369991600,1751814645751,-500.0,0.00019177,2]
[369991602,1751814645760,-500.0,0.00019177,2]
[369991604,1751814645769,-500.0,0.00019177,2]
[369991605,1751814645779,-500.0,0.00019177,2]
[369991607,1751814645788,-500.0,0.00019177,2]
[369991609,1751814645797,-500.0,0.00019177,2]
[369991611,1751814645807,-368.24513035,0.00019177,2]
[369991613,1751814645816,-460.0,0.00019178,2]
[369991615,1751814645826,-460.0,0.00019178,2]
[369991616,1751814645835,-460.0,0.00019178,2]
[369991618,1751814645844,-460.0,0.00019178,2]
[369991620,1751814645853,-460.0,0.00019178,2]
[369991622,1751814645864,-460.0,0.00019178,2]
[369991624,1751814645874,-460.0,0.00019178,2]
[369991626,1751814645883,-284.13962024,0.00019178,2]
[369991628,1751814645893,-500.27,0.00019178,2]
[369991629,1751814645902,-214.36908735,0.00019178,2]
[369991631,1751814645911,-460.0,0.00019178,2]
[369991633,1751814645920,-460.0,0.00019178,2]
[369991635,1751814645930,-460.0,0.00019178,2]
[369991637,1751814645939,-460.0,0.00019178,2]
[369991639,1751814645949,-460.0,0.00019178,2]
[369991641,1751814645958,-460.0,0.00019178,2]
[369991642,1751814645968,-153.09850899,0.00019178,2]
[369991644,1751814645977,-460.0,0.00019178,2]
[369991646,1751814645986,-460.0,0.00019178,2]
[369991648,1751814645997,-460.0,0.00019178,2]
[369991650,1751814646006,-460.0,0.00019178,2]
[369991652,1751814646015,-460.0,0.00019178,2]
[369991653,1751814646026,-460.0,0.00019178,2]
[369991655,1751814646035,-466.8995808,0.00019178,2]
[369991657,1751814646044,-460.0,0.00019178,2]
[369991659,1751814646054,-460.0,0.00019178,2]
[369991661,1751814646063,-460.0,0.00019178,2]
[369991663,1751814646073,-412.21713043,0.00019178,2]
[369991665,1751814646082,-460.0,0.00019178,2]
[369991666,1751814646091,-460.0,0.00019178,2]
[369991668,1751814646101,-460.0,0.00019178,2]
[369991670,1751814646113,-479.631339,0.00019178,2]
[369991672,1751814646122,-166.743301,0.00019178,2]
[369991674,1751814646131,-167.443183,0.00019178,2]
[369991676,1751814646140,-505.72023259,0.00019178,2]
[369991677,1751814646149,-460.0,0.00019178,2]
[369991679,1751814646159,-460.0,0.00019178,2]
[369991681,1751814646168,-1113.971565,0.00019178,2]
[369991683,1751814646177,-460.0,0.00019178,2]
[369991685,1751814646186,-442.292772,0.00019178,2]
[369991687,1751814646196,-460.0,0.00019178,2]
[369991689,1751814646205,-460.0,0.00019178,2]
[369991691,1751814646214,-460.0,0.00019178,2]
[369991693,1751814646223,-460.0,0.00019178,2]
[369991695,1751814646232,-460.0,0.00019178,2]
[369991697,1751814646242,-460.0,0.00019178,2]
[369991699,1751814646251,-460.0,0.00019178,2]
[369991701,1751814646260,-460.0,0.00019178,2]
[369991703,1751814646269,-460.0,0.00019178,2]
[369991705,1751814646279,-460.0,0.00019178,2]
[369991707,1751814646288,-466.39709452,0.00019178,2]
[369991709,1751814646298,-499.90461741,0.00019178,2]
[369991710,1751814646307,-460.0,0.00019178,2]
[369991711,1751814646316,-460.0,0.00019178,2]
[369991712,1751814646325,-460.0,0.00019178,2]
[369991713,1751814646334,-460.0,0.00019178,2]
[369991714,1751814646344,-460.0,0.00019178,2]
[369991715,1751814646353,-460.0,0.00019178,2]
[369991716,1751814646363,-460.0,0.00019178,2]
[369991717,1751814646373,-460.0,0.00019178,2]
[369991718,1751814646382,-460.0,0.00019178,2]
[369991719,1751814646391,-460.56470438,0.00019178,2]
[369991720,1751814646418,-63.56529562,0.00019178,2]
[369991721,1751814646427,-238.24864852,0.00019178,2]
[369991722,1751814646437,-460.0,0.00019178,2]
[369991723,1751814646448,-460.0,0.00019178,2]
[369991724,1751814646463,-460.0,0.00019178,2]
[369991725,1751814646473,-505.27,0.00019178,2]
[369991726,1751814646482,-460.0,0.00019178,2]
[369991727,1751814646491,-460.0,0.00019178,2]
[369991728,1751814646500,-460.0,0.00019178,2]
[369991729,1751814646510,-460.0,0.00019178,2]
[369991731,1751814646518,-215.55584115,0.00019178,2]
[369992724,1751814870042,-500.0,0.000209,30]
[369992726,1751814906549,-1500.0,0.000209,30]
[369992730,1751815096294,506.0,0.00030136,120]
[369992735,1751815192713,511.32400595,0.00026137,120]
[369992739,1751815396167,541.13,0.00030137,120]
[369992743,1751815667538,156.84,0.00013699,2]
[369992751,1751815732211,330.65,0.00026698,120]
[369992753,1751815797835,303.0,0.00030137,120]
[369992762,1751815831757,-330.65,0.00017799,2]
[369992763,1751815831767,-26.21569723,0.00017898,2]
[369992764,1751815831779,-179.74845266,0.00017898,2]
[369992765,1751815831789,-70.32904821,0.00017905,2]
[369992774,1751815832135,-229.67095179,0.00017905,2]
[369992777,1751815832145,-151.0,0.00017906,2]
[369992778,1751815832154,-151.0,0.00017906,2]
[369992780,1751815832164,-151.0,0.00017906,2]
[369992782,1751815832173,-151.0,0.00017906,2]
[369992784,1751815832183,-151.0,0.00017906,2]
[369992786,1751815832192,-151.0,0.00017906,2]
[369992788,1751815832201,-151.0,0.00017906,2]
[369992790,1751815832212,-151.0,0.00017906,2]
[369992791,1751815832221,-151.0,0.00017906,2]
[369992792,1751815832232,-151.0,0.00017906,2]
[369992793,1751815832242,-151.0,0.00017906,2]
[369992794,1751815832253,-151.0,0.00017906,2]
[369992795,1751815832263,-211.0,0.00017916,2]
[369992796,1751815832274,-166.57,0.00017917,2]
[369992797,1751815832283,-2373.38528439,0.00017917,2]
[369992798,1751815832295,-1154.14369791,0.00017917,2]
[369992799,1751815832307,-2224.80677923,0.00017917,2]
[369992800,1751815832319,-846.43026503,0.00017917,2]
[369992801,1751815832339,-1222.935,0.00017917,2]
[369992802,1751815832350,-1167.53973103,0.00017917,2]
[369992803,1751815832366,-1876.46909728,0.00017917,2]
[369992804,1751815832378,-484.42975776,0.00017917,2]
[369992805,1751815832424,-1206.75993917,0.00017917,2]
[369992806,1751815832440,-4575.7104482,0.00017917,2]
[369992807,1751815832450,-150.0,0.00017966,2]
[369992808,1751815832461,-1715.12103746,0.00017977,2]
[369992809,1751815832473,-137.29896254,0.00017977,2]
[369992810,1751815832483,-643.56,0.00017998,2]
[369992811,1751815832493,-378.65,0.00017998,2]
[369992812,1751815832503,-389.24258838,0.00018,2]
[369992814,1751815837712,-345.46654622,0.00018,2]
[369992815,1751815837722,-88.62345378,0.00018,2]
[369992816,1751815837822,-452.12654622,0.00018,2]
[369992817,1751815837832,-200.301046,0.00018,2]
[369992818,1751815837842,-150.0,0.000181,2]
[369992819,1751815837851,-666.0,0.00018125,2]
[369992820,1751815837864,-282.07,0.00018199,2]
[369992821,1751815837874,-250.0,0.00018237,2]
[369992822,1751815837883,-497.94607283,0.00018293,2]
[369992823,1751815837895,-502.05392717,0.00018293,2]
[369992824,1751815837905,-170.27,0.00018329,2]
[369992825,1751815837914,-207.4,0.00018389,2]
[369992826,1751815837923,-83.85001759,0.00018448,2]
[369992827,1751815837935,-316.98998241,0.00018448,2]
[369992828,1751815837945,-135.7042825,0.00018484,2]
[369992829,1751815837956,-165.0557175,0.00018484,2]
[369992830,1751815837966,-305.38,0.00018535,2]
[369992831,1751815837975,-150.0,0.0001859,2]
[369992832,1751815837984,-126.21322134,0.000188,6]
[369992860,1751815838442,-673.78677866,0.000188,6]
[369992863,1751815838451,-182.06390451,0.000189,6]
[369993015,1751815839998,-1517.93609549,0.000189,6]
[369993017,1751815840008,-1473.88375678,0.000189,2]
[369993019,1751815840017,-403.4226,0.0001899,2]
[369993021,1751815840027,-403.42261,0.0001901,2]
[369993023,1751815840036,-150.0,0.0001907,2]
[369993025,1751815840046,-267.81173352,0.00019078,2]
[369993027,1751815840055,-1020.6622,0.00019078,2]
[369993029,1751815840064,-210.28571445,0.00019129,2]
[369993031,1751815840074,-836.76783547,0.00019129,2]
[369993033,1751815840083,-160.0,0.00019129,2]
[369993035,1751815840093,-403.42261,0.0001914,2]
[369993037,1751815840103,-443.03070107,0.00019152,2]
[369993430,1751815844239,-376.69702797,0.00019152,2]
[369993451,1751815844421,-504.90518433,0.00019152,2]
[369993453,1751815844431,-300.0,0.00019177,2]
[369993455,1751815844440,-1001.9278,0.00019177,2]
[369993457,1751815844450,-1000.0,0.00019177,2]
[369993459,1751815844460,-374.24945893,0.00019177,2]
[369993461,1751815844469,-320.87094827,0.00019177,2]
[369993463,1751815844479,-645.58948157,0.00019177,2]
[369993465,1751815844488,-210.8571269,0.00019177,2]
[369993585,1751815845720,-3859.20995314,0.00019177,2]
[369993614,1751815845998,-1340.27714046,0.00019177,2]
[369993616,1751815846008,-1261.85129154,0.00019177,2]
[369994536,1751815858823,599.9,0.00030136,120]
[369994537,1751815902442,1321.0,0.0003013,120]
[369994540,1751816028056,658.0,0.0003013,120]
[369994542,1751816061857,517.37088065,0.0003,120]
[369994543,1751816074046,460.0,0.0003,120]
[369994545,1751816083282,460.0,0.0003,120]
[369994546,1751816092704,460.0,0.0003,120]
[369994547,1751816101174,460.0,0.0003,120]
[369994548,1751816108935,460.0,0.0003,120]
[369994549,1751816117113,460.0,0.0003,120]
[369994551,1751816127550,460.0,0.0003,120]
[369994552,1751816136709,460.0,0.0003,120]
[369994553,1751816145059,460.0,0.0003,120]
[369994554,1751816146218,391.0,0.0003013,120]
[369994555,1751816153838,460.0,0.0003,120]
[369994557,1751816209060,300.0,0.0003013,120]
[369994558,1751816218181,600.252475,0.00030136,120]
[369994561,1751816278673,599.9,0.00030136,120]
[369994562,1751816462043,299.9,0.00030136,120]
[369994565,1751816792054,160.0,0.00026965,120]
[369994566,1751816814084,56500.0,0.0003,120]
[369994576,1751816917868,156.84,0.00013699,2]
[369994578,1751816939315,599.9,0.00030136,120]
[369994589,1751816994349,2500.0,0.00030137,120]
[369994593,1751817032090,-518.0,0.00016231,2]
[369994594,1751817032101,-214.88121879,0.00016998,2]
[369994595,1751817032112,-2611.89035309,0.00017043,2]
[369994596,1751817032123,-500.0,0.00017064,2]
[369994597,1751817032134,-500.0,0.00017064,2]
[369994598,1751817032146,-500.0,0.00017064,2]
[369994599,1751817032157,-1200.0,0.00017097,2]
[369994600,1751817032168,-200.0,0.00017098,2]
[369994601,1751817032179,-163.23,0.00017108,2]
[369994602,1751817032190,-300.0,0.00017293,2]
[369994603,1751817032201,-300.0,0.00017293,2]
[369994604,1751817032212,-4954.43997139,0.00017294,2]
[369994605,1751817032232,-11029.81002861,0.00017294,2]
[369994606,1751817032244,-214.88121877,0.00017438,2]
[369994607,1751817032255,-413.96,0.00017511,2]
[369994608,1751817032266,-282.07,0.00017533,2]
[369994609,1751817032277,-300.0,0.00017667,2]
[369994610,1751817032290,-16496.24,0.00017669,2]
[369994611,1751817032301,-11028.09,0.00017766,2]
[369994612,1751817032313,-536.2,0.00017838,2]
[369994613,1751817032324,-214.88121877,0.00017877,2]
[369994614,1751817032338,-15314.77,0.00017977,2]
[369994615,1751817032349,-152.65,0.00017977,2]
[369994616,1751817032360,-1000.0,0.00017977,2]
[369994617,1751817032371,-160.0,0.00017977,2]
[369994618,1751817032382,-152.65,0.0001799,2]
[369994619,1751817032392,-28.20539934,0.00018,2]
[369994620,1751817032406,-171.79460066,0.00018,2]
[369994621,1751817032418,-152.65,0.00018004,2]
[369994622,1751817032429,-152.65,0.00018018,2]
[369994623,1751817032439,-152.65,0.00018032,2]
[369994624,1751817032451,-152.65,0.00018046,2]
[369994625,1751817032462,-152.65,0.0001806,2]
[369994626,1751817032473,-2532.33276783,0.00018068,2]
[369994627,1751817032484,-152.65,0.00018073,2]
[369994628,1751817032495,-152.65,0.00018087,2]
[369994629,1751817032506,-150.0,0.000181,2]
[369994630,1751817032518,-152.65,0.00018101,2]
[369994631,1751817032528,-89.923137,0.00018115,2]
[369994632,1751817032542,-62.726863,0.00018115,2]
[369994633,1751817032553,-152.65,0.00018129,2]
[369994634,1751817032564,-152.65,0.00018143,2]
[369994635,1751817032575,-152.65,0.00018157,2]
[369994636,1751817032586,-10802.843137,0.00018168,2]
[369994637,1751817032604,-545.44642781,0.00018168,2]
[369994638,1751817032618,-462.18005561,0.00018168,2]
[369994639,1751817032631,-9328.52129154,0.00018168,2]
[369994640,1751817032644,-1636.75593929,0.00018168,2]
[369994641,1751817032657,-295.18919996,0.00018168,2]
[369994652,1751817038006,-2920.43945013,0.00018168,2]
[369994653,1751817038101,-1071.75736924,0.00018168,2]
[369994654,1751817038110,-165.5,0.00018329,2]
[369994655,1751817038120,-2532.33276781,0.00018332,2]
[369994656,1751817038129,-800.12,0.00018341,2]
[369994657,1751817038139,-300.0,0.00018389,2]
[369994658,1751817038149,-6912.642,0.00018389,2]
[369994659,1751817038158,-207.4,0.00018389,2]
[369994660,1751817038168,-500.0,0.00018389,2]
[369994661,1751817038177,-500.0,0.00018389,2]
[369994662,1751817038186,-500.0,0.00018389,2]
[369994663,1751817038195,-926.18,0.00018441,2]
[369994664,1751817038205,-255878.71148217,0.00018444,2]
[369994665,1751817038214,-2705.17211025,0.00018444,2]
[369994666,1751817038223,-5334.58560811,0.00018444,2]
[369994667,1751817038232,-150.0,0.0001859,2]
[369994668,1751817038241,-2532.33276781,0.00018597,2]
[369994669,1751817038251,-700.0,0.000187,6]
[369994670,1751817038261,-536.2,0.0001873,2]
[369994671,1751817038271,-155.01370338,0.00018761,2]
[369994672,1751817038281,-543.23082255,0.00018761,2]
[369994673,1751817038291,-1680.0,0.00018765,2]
[369994674,1751817038300,-250.0,0.0001877,2]
[369994675,1751817038310,-319.2458,0.000188,2]
[369994676,1751817038319,-2500.0,0.000188,2]
[369994677,1751817038328,-1400.0,0.000188,6]
[369994678,1751817038341,-543.23082246,0.00018821,2]
[369994679,1751817038350,-2532.33276781,0.00018861,2]
[369994680,1751817038359,-1543.56,0.00018878,2]
[369994681,1751817038368,-543.23082246,0.00018881,2]
[369994682,1751817038378,-420.0,0.00018882,2]
[369994683,1751817038388,-2200.0,0.000189,6]
[369994684,1751817038398,-1443.7585696,0.000189,2]
[369994685,1751817038407,-157.38534327,0.00018901,2]
[369994686,1751817038417,-543.23082246,0.00018941,2]
[369994687,1751817038427,-150.0,0.00018987,2]
[369994688,1751817038436,-344.23839665,0.0001899,2]
[369994689,1751817038446,-96231.99673474,0.00019,2]
[369994690,1751817038456,-543.23082246,0.00019001,2]
[369994693,1751817038465,-543.23082246,0.00019061,2]
[369994696,1751817038475,-150.0,0.0001907,2]
[369994699,1751817038484,-1000.0,0.00019077,2]
[369994701,1751817038493,-172.35800854,0.00019078,2]
[369994703,1751817038502,-641.6248,0.00019078,2]
[369994705,1751817038512,-5000.0,0.00019078,2]
[369994707,1751817038521,-543.23082246,0.00019121,2]
[369994709,1751817038531,-160.0,0.00019123,2]
[369994711,1751817038540,-210.28571445,0.00019123,2]
[369994712,1751817038549,-836.76783547,0.00019123,2]
[369994714,1751817038558,-2532.33276781,0.00019125,2]
[369994716,1751817038568,-1543.54,0.00019152,2]
[369994718,1751817038577,-781.21304018,0.00019174,2]
[369994720,1751817038586,-518.64716,0.00019177,2]
[369994722,1751817038596,-300.0,0.00019177,2]
[369994724,1751817038604,-451.9126371,0.00019177,2]
[369994726,1751817038614,-435.31392648,0.00019177,2]
[369994728,1751817038623,-395.56994038,0.00019177,2]
[369994730,1751817038632,-500.0,0.00019177,2]
[369994732,1751817038642,-218.0886231,0.00019177,2]
[369994734,1751817038651,-214.97481805,0.00019177,2]
[369994736,1751817038660,-172.35533658,0.00019177,2]
[369994738,1751817038669,-500.0,0.00019177,2]
[369994740,1751817038678,-500.0,0.00019177,2]
[369994742,1751817038688,-249.0946,0.00019177,2]
[369994744,1751817038697,-500.0,0.00019177,2]
[369994746,1751817038707,-448.10348891,0.00019177,2]
[369994748,1751817038716,-530.18146027,0.00019177,2]
[369994750,1751817038726,-500.0,0.00019177,2]
[369994752,1751817038735,-500.0,0.00019177,2]
[369994754,1751817038744,-167.443183,0.00019178,2]
[369994756,1751817038754,-165.859792,0.00019178,2]
[369994757,1751817038763,-232.077409,0.00019178,2]
[369994759,1751817038773,-459.6467,0.00019178,2]
[369994761,1751817038785,-368.57731,0.00019178,2]
[369994763,1751817038794,-835.478674,0.00019178,2]
[369994765,1751817038804,-460.0,0.00019178,2]
[369994767,1751817038814,-151.0,0.00019178,2]
[369994769,1751817038823,-460.0,0.00019178,2]
[369994771,1751817038833,-460.0,0.00019178,2]
[369994773,1751817038843,-319.17786818,0.00019178,2]
[369994774,1751817038854,-291.603881,0.00019178,2]
[369994776,1751817038864,-460.0,0.00019178,2]
[369994778,1751817038873,-494.76507452,0.00019178,2]
[369994780,1751817038884,-460.0,0.00019178,2]
[369994782,1751817038893,-460.0,0.00019178,2]
[369994784,1751817038902,-497.90687671,0.00019178,2]
[369994786,1751817038912,-151.0,0.00019178,2]
[369994788,1751817038922,-151.0,0.00019178,2]
[369994790,1751817038931,-460.0,0.00019178,2]
[369994792,1751817038941,-460.0,0.00019178,2]
[369994794,1751817038952,-460.0,0.00019178,2]
[369994796,1751817038962,-600.45,0.00019178,2]
[369994798,1751817038971,-460.0,0.00019178,2]
[369994800,1751817038981,-460.0,0.00019178,2]
[369994802,1751817038990,-460.0,0.00019178,2]
[369994804,1751817039000,-460.0,0.00019178,2]
[369994806,1751817039010,-460.0,0.00019178,2]
[369994808,1751817039020,-460.0,0.00019178,2]
[369994810,1751817039030,-460.0,0.00019178,2]
[369994812,1751817039040,-460.0,0.00019178,2]
[369994814,1751817039049,-460.0,0.00019178,2]
[369994816,1751817039059,-460.0,0.00019178,2]
[369994818,1751817039068,-460.0,0.00019178,2]
[369994820,1751817039077,-519.31,0.00019178,2]
[369994822,1751817039087,-460.0,0.00019178,2]
[369994824,1751817039096,-460.0,0.00019178,2]
[369994825,1751817039106,-460.0,0.00019178,2]
[369994828,1751817039115,-460.0,0.00019178,2]